bitfinex/quotes_ETHUSD_20250725
["timestamp","ask_amount","ask_price","bid_price","bid_amount"]
[1753438966676,1.2112,3718.8,3718.6,0.25152088]
[1753438966867,1.2112,3718.8,3718.7,2.94063266]
[1753438967193,2.535,3718.8,3718.7,0.25152088]
[1753438967892,2.6893793,3718.4,3718.0,0.1344]
[1753438968112,2.82392137,3718.2,3717.7,0.1344]
[1753438968317,2.68961862,3718.0,3717.8,4.279]
[1753438968462,1.3238,3717.9,3717.7,4.279]
[1753438968668,1.4582,3717.8,3717.7,4.279]
[1753438969279,2.68983511,3717.7,3717.6,0.001]
[1753438969487,8.30383511,3717.7,3717.6,0.001]
[1753438969997,5.614,3717.7,3717.6,0.001]
[1753438970601,4.2902,3717.7,3717.6,0.001]
[1753438970805,2.1462,3717.7,3717.6,0.001]
[1753438970975,2.614,3717.7,3717.6,0.001]
[1753438971168,2.1462,3717.7,3717.6,2.69090746]
[1753438971590,2.1462,3717.7,3717.6,0.001]
[1753438972517,2.1462,3717.7,3717.6,2.69090746]
[1753438973394,2.1462,3717.7,3717.6,0.001]
[1753438974018,2.614,3717.7,3717.6,0.001]
[1753438974340,8.30383511,3717.7,3717.6,0.001]
[1753438974627,8.43823511,3717.7,3717.6,0.001]
[1753438975213,5.7484,3717.7,3717.6,0.001]
[1753438975378,8.43823511,3717.7,3717.6,0.001]
[1753438975816,8.37663511,3717.7,3717.6,0.001]
[1753438979481,5.6868,3717.7,3717.6,0.001]
[1753438979903,9.9618,3717.7,3717.6,0.001]
[1753438980417,12.65163511,3717.7,3717.6,0.001]
[1753438980586,9.9618,3717.7,3717.6,0.001]
[1753438981092,12.65163511,3717.7,3717.6,0.001]
[1753438981611,5.219,3717.7,3717.6,0.001]
[1753438981810,9.494,3717.7,3717.6,0.001]
[1753438982394,5.6868,3717.7,3717.6,0.001]
[1753438982596,9.9608,3717.7,3717.6,0.001]
[1753438983804,12.65063511,3717.7,3717.6,0.001]
[1753438984684,8.92663511,3717.7,3717.6,0.001]
[1753438984889,13.19963511,3717.7,3717.6,0.001]
[1753438987218,5.6868,3717.7,3717.6,0.001]
[1753438987385,12.64963511,3717.7,3717.6,0.001]
[1753438987998,12.64863511,3717.7,3717.6,0.001]
[1753438988498,5.2488,3717.7,3717.6,0.001]
[1753438988692,9.5208,3717.7,3717.6,0.001]
[1753438989019,5.2488,3717.7,3717.6,0.001]
[1753438989205,12.21063511,3717.7,3717.6,0.001]
[1753438989521,9.9883,3717.7,3717.6,0.001]
[1753438990286,5.2488,3717.7,3717.6,0.001]
[1753438990492,9.5198,3717.7,3717.6,0.001]
[1753438990710,6.5198,3717.7,3717.6,0.001]
[1753438990996,12.67713511,3717.7,3717.6,0.001]
[1753438993302,9.9873,3717.7,3717.6,0.001]
[1753438993716,9.5188,3717.7,3717.6,0.001]
[1753438996896,12.20863511,3717.7,3717.6,0.001]
[1753438997098,9.5188,3717.7,3717.6,0.001]
[1753438997307,12.20863511,3717.7,3717.6,0.001]
[1753438997510,12.67613511,3717.7,3717.6,0.001]
[1753438997825,12.20863511,3717.7,3717.6,0.001]
[1753438998031,12.67613511,3717.7,3717.6,0.001]
[1753438999129,0.1344,3717.7,3717.6,0.001]
[1753438999320,5.2882,3717.7,3717.6,0.001]
[1753439000319,7.97803511,3717.7,3717.6,0.001]
[1753439000693,5.2882,3717.7,3717.6,0.001]
[1753439000899,4.4024,3717.7,3717.6,0.001]
[1753439001121,0.1344,3717.7,3717.6,2.69090746]
[1753439001312,4.267,3717.8,3717.6,0.001]
[1753439001635,0.1344,3717.8,3717.7,2.68983511]
[1753439001932,0.1344,3717.8,3717.7,3.13253511]
[1753439002711,0.1344,3717.8,3717.7,0.4427]
[1753439002930,0.1344,3717.8,3717.7,3.13253511]
[1753439003093,0.1344,3717.8,3717.6,0.001]
[1753439003711,0.1344,3717.8,3717.6,2.69090401]
[1753439004028,0.1344,3717.8,3717.7,2.68983511]
[1753439004642,4.265,3718.0,3717.7,0.4427]
[1753439004804,0.1344,3718.0,3717.7,3.13251834]
[1753439005002,0.1344,3718.0,3717.8,2.68975492]
[1753439005440,0.1344,3718.0,3717.9,2.68969041]
[1753439006095,0.1344,3718.0,3717.9,0.25139405]
[1753439006526,1.0202,3718.0,3717.9,0.25139405]
[1753439006733,8.41121807,3718.0,3717.9,0.25139405]
[1753439007231,14.66852892,3718.0,3717.9,0.25139405]
[1753439007802,15.21852892,3718.0,3717.9,0.25139405]
[1753439008848,15.21852892,3718.0,3717.6,0.001]
[1753439008849,6.92373511,3717.7,3717.6,0.001]
[1753439009004,11.18673511,3717.7,3717.6,0.2525]
[1753439009206,12.67443511,3717.7,3717.6,0.2525]
[1753439010628,12.67443511,3717.7,3717.6,0.001]
[1753439012126,13.22443511,3717.7,3717.6,1e-08]
[1753439014134,13.80410086,3717.7,3717.6,1e-08]
[1753439014619,8.96143511,3717.7,3717.6,1e-08]
[1753439014823,13.22243511,3717.7,3717.6,1e-08]
[1753439015035,13.80195062,3717.7,3717.6,1e-08]
[1753439015432,9.54095062,3717.7,3717.6,1e-08]
[1753439015648,3.40375062,3717.7,3717.6,1e-08]
[1753439015861,0.1344,3717.7,3717.6,0.48990001]
[1753439016017,0.1344,3717.7,3717.6,0.74155863]
[1753439016332,4.26,3718.0,3717.7,1.2181]
[1753439016333,4.3944,3718.0,3717.7,1.2181]
[1753439016505,3.0,3717.9,3717.8,0.77085862]
[1753439016709,3.0,3717.9,3717.8,0.29885862]
[1753439016918,0.57951551,3717.9,3717.8,0.29885862]
[1753439017126,4.3944,3718.0,3717.8,0.29885862]
[1753439017325,3.0,3717.9,3717.8,0.0472]
[1753439017525,3.0,3717.9,3717.8,0.29880978]
[1753439017727,3.57951551,3717.9,3717.8,0.29880978]
[1753439018039,3.57951551,3717.9,3717.8,0.72360978]
[1753439018228,0.57951551,3717.9,3717.8,0.472]
[1753439018428,3.71391551,3718.0,3717.8,0.472]
[1753439018840,3.1344,3718.0,3717.8,0.472]
[1753439019756,7.3934,3718.0,3717.8,0.472]
[1753439020562,1.86755634,3718.6,3717.9,0.472]
[1753439020730,0.1344,3718.3,3717.9,0.5192]
[1753439021072,3.1344,3718.4,3718.0,4.02246214]
[1753439021257,3.1344,3718.4,3718.0,3.97526214]
[1753439021565,3.1344,3718.4,3718.1,0.5192]
[1753439021742,3.1344,3718.4,3718.2,0.472]
[1753439022057,3.1344,3718.4,3718.2,2.68946635]
[1753439022270,0.1344,3718.4,3718.3,0.472]
[1753439022434,1.86755634,3718.6,3718.3,0.472]
[1753439022435,4.86755634,3718.6,3718.3,0.472]
[1753439022628,1.86755634,3718.6,3718.5,2.68925642]
[1753439022828,1.86755634,3718.6,3718.5,4.44284898]
[1753439023069,1.86755634,3718.6,3718.5,4.80191851]
[1753439023267,1e-08,3718.7,3718.6,3.9260841]
[1753439023572,0.002,3719.5,3719.4,3.92550568]
[1753439023744,0.002,3719.5,3719.4,8.20939173]
[1753439024063,0.002,3719.5,3719.4,8.80670568]
[1753439024580,1e-08,3719.5,3719.4,9.35670568]
[1753439024726,1e-08,3719.5,3719.4,10.59874354]
[1753439024933,1e-08,3719.5,3719.4,10.84984213]
[1753439025164,1e-08,3719.5,3719.4,13.84984213]
[1753439025363,1e-08,3719.5,3719.4,9.59284213]
[1753439025550,1e-08,3719.5,3719.4,13.8484767]
[1753439026068,1e-08,3719.5,3719.4,9.59244423]
[1753439026265,1e-08,3719.5,3719.4,13.84720016]
[1753439027336,1e-08,3719.5,3719.4,9.59220016]
[1753439027536,1e-08,3719.5,3719.4,13.84620016]
[1753439027934,1e-08,3719.5,3719.4,10.29620016]
[1753439029147,1e-08,3719.5,3719.4,10.29556747]
[1753439033450,1e-08,3719.5,3719.4,10.27776747]
[1753439033654,1e-08,3719.5,3719.4,9.80176747]
[1753439033862,1e-08,3719.5,3719.4,5.30194354]
[1753439034067,1e-08,3719.5,3719.4,9.55194354]
[1753439034564,1e-08,3719.5,3719.4,10.02394354]
[1753439035277,1e-08,3719.5,3719.4,5.77394354]
[1753439035461,1e-08,3719.5,3719.4,10.02394354]
[1753439037066,1e-08,3719.5,3719.4,9.55094354]
[1753439037681,1e-08,3719.5,3719.4,9.79976018]
[1753439037878,1e-08,3719.5,3719.4,9.79978112]
[1753439038885,1e-08,3719.5,3719.4,9.79969836]
[1753439040298,1e-08,3719.5,3719.4,4.31379836]
[1753439040299,0.84810001,3719.5,3719.4,4.31379836]
[1753439040589,1e-08,3719.5,3719.4,7.3187605]
[1753439040762,1e-08,3719.5,3719.4,7.31870648]
[1753439041080,0.84810001,3719.5,3719.4,7.31870648]
[1753439041282,1.28370001,3719.5,3719.4,0.24882232]
[1753439041486,1.28370001,3719.5,3719.4,4.247]
[1753439042494,1.28370001,3719.5,3719.1,0.1344]
[1753439042696,1.28370001,3719.5,3718.9,2.68895225]
[1753439042697,1.2301,3719.3,3718.9,4.246]
[1753439042994,2.68894819,3719.0,3718.5,4.246]
[1753439043231,1.2301,3719.3,3717.6,2.68986874]
[1753439043232,3.97271408,3718.9,3718.1,4.246]
[1753439043358,1.3171,3718.5,3718.1,4.246]
[1753439043551,0.1344,3718.3,3718.1,4.246]
[1753439043772,1.2837,3718.2,3718.1,4.246]
[1753439044176,1.2837,3718.2,3717.8,0.1344]
[1753439044377,1.3171,3718.5,3717.9,4.246]
[1753439044378,1.2837,3718.1,3717.9,4.246]
[1753439044569,1.2837,3718.0,3717.9,4.246]
[1753439044753,1.4181,3718.0,3717.9,4.246]
[1753439045383,0.8481,3718.0,3717.9,6.93569041]
[1753439046398,0.8436,3718.3,3718.0,2.68961758]
[1753439046599,0.978,3718.5,3718.1,4.49574672]
[1753439046766,0.8436,3718.5,3718.4,2.68932874]
[1753439047095,0.8436,3718.5,3718.4,2.93907546]
[1753439048898,0.8436,3718.9,3718.8,2.68903947]
[1753439049257,0.8436,3718.9,3718.8,2.93896036]
[1753439050089,1.2756,3719.4,3719.0,2.68889486]
[1753439050292,1.2756,3719.4,3719.2,2.68872022]
[1753439050293,0.8436,3719.3,3719.2,2.68872022]
[1753439050492,0.8436,3719.3,3719.2,2.93864111]
[1753439050664,1.2988,3719.3,3719.2,2.93864111]
[1753439050859,4.2988,3719.3,3717.9,3.98026068]
[1753439051066,0.1344,3719.1,3718.6,2.68911465]
[1753439051274,0.1344,3718.9,3718.7,4.49409127]
[1753439051473,0.1344,3718.9,3718.8,0.25009127]
[1753439051678,0.1344,3718.9,3718.8,2.93913074]
[1753439052195,1.4332,3718.9,3718.8,2.93913074]
[1753439052978,1.4332,3718.9,3718.5,4.243]
[1753439052979,2.6789,3718.9,3718.5,4.243]
[1753439053185,1.3801,3718.9,3718.6,2.93969201]
[1753439053361,1.2988,3718.8,3718.7,2.93962696]
[1753439053563,0.8436,3718.8,3718.7,2.93962696]
[1753439054883,0.8436,3718.8,3718.7,2.9396145]
[1753439055490,0.8436,3718.8,3718.7,7.1826145]
[1753439056110,1.2988,3718.8,3718.7,0.25050272]
[1753439056399,5.28253947,3718.8,3718.7,0.25050272]
[1753439056805,5.28253947,3718.8,3718.2,4.242]
[1753439057005,2.68918924,3718.6,3718.3,0.25052518]
[1753439057174,2.68930011,3718.5,3718.4,0.25052518]
[1753439057382,5.20550011,3718.5,3718.4,0.25052518]
[1753439057566,5.33990011,3718.5,3718.4,0.25052518]
[1753439057766,2.68934569,3718.4,3717.8,6.93174579]
[1753439057991,2.68934569,3718.4,3717.9,0.25051562]
[1753439057992,0.1344,3718.0,3717.9,0.25051562]
[1753439058689,1.4332,3718.0,3717.9,0.25051562]
[1753439059089,0.1344,3718.0,3717.9,2.94020603]
[1753439059293,1.2618,3718.8,3717.9,6.52493622]
[1753439059489,0.1344,3718.6,3718.0,0.25051562]
[1753439059724,1.2988,3718.5,3718.1,4.62591562]
[1753439060018,0.1344,3718.6,3718.1,4.3754]
[1753439060326,1.2988,3718.4,3718.1,4.3754]
[1753439060512,0.8436,3718.3,3718.2,2.6894734]
[1753439061026,0.8436,3718.3,3718.2,0.25044678]
[1753439061326,1.2988,3718.3,3718.2,4.49144678]
[1753439061527,1.4332,3718.3,3718.2,4.49144678]
[1753439061901,1.4332,3718.3,3718.2,0.25044678]
[1753439062894,5.41460107,3718.3,3718.2,0.25044678]
[1753439063095,5.7252,3718.3,3718.2,0.25044678]
[1753439065009,5.5908,3718.3,3718.2,0.25044678]
[1753439067827,8.28020107,3718.3,3718.2,0.25044678]
[1753439068034,5.5908,3718.3,3718.2,0.25044678]
[1753439068241,2.5908,3718.3,3718.2,0.25087093]
[1753439068610,3.97884787,3718.8,3718.2,0.25087093]
[1753439068810,0.8436,3718.6,3718.3,0.25087093]
[1753439069011,0.8436,3718.6,3718.4,0.25087093]
[1753439069012,3.8436,3718.5,3718.4,0.25087093]
[1753439069207,0.8436,3718.5,3718.4,0.25087093]
[1753439069607,0.8436,3718.5,3718.2,2.68946322]
[1753439069824,0.8436,3718.4,3718.3,0.25115335]
[1753439070437,1.2988,3718.4,3718.3,0.25115335]
[1753439070755,1.76030527,3719.0,3718.3,0.25115335]
[1753439070953,0.8436,3718.7,3718.4,0.25115335]
[1753439071264,0.8436,3718.7,3718.5,0.25115335]
[1753439071546,3.0,3718.9,3718.6,0.25115335]
[1753439071711,3.0,3718.9,3718.7,0.25115335]
[1753439071912,0.91670527,3719.0,3718.8,0.25124384]
[1753439072124,4.238,3718.9,3718.6,2.68913898]
[1753439072331,0.91670527,3719.0,3718.9,2.68896716]
[1753439072533,0.91670527,3719.0,3718.9,2.94021873]
[1753439072843,0.91670527,3719.0,3718.9,0.25125157]
[1753439073046,2.21550527,3719.0,3718.9,0.25125157]
[1753439073385,1.76030527,3719.0,3718.9,0.25125157]
[1753439073585,1.76030527,3719.0,3718.9,2.94021873]
[1753439074387,1.76030527,3719.0,3718.9,0.25125157]
[1753439074744,1.76030527,3719.0,3718.9,2.94021873]
[1753439075076,1.89470527,3719.0,3718.9,2.94021873]
[1753439075269,1.05110527,3719.0,3718.9,2.94021873]
[1753439075774,1.89470527,3719.0,3718.9,2.94021873]
[1753439076073,1.89470527,3719.0,3718.9,0.25125157]
[1753439077171,1.89470527,3719.0,3718.9,2.94021873]
[1753439077775,1.89470527,3719.0,3718.9,0.25125157]
[1753439078073,1.89470527,3719.0,3718.9,2.94021873]
[1753439078478,1.89470527,3719.0,3718.9,0.25125157]
[1753439078781,1.89470527,3719.0,3718.9,2.94021873]
[1753439080369,1.89470527,3719.0,3718.9,0.25125157]
[1753439080884,1.89470527,3719.0,3718.9,2.94021873]
[1753439081183,1.89470527,3719.0,3718.9,0.25125157]
[1753439081352,1.89470527,3719.0,3718.9,2.94021873]
[1753439081553,1.89470527,3719.0,3718.9,2.94047358]
[1753439081765,1.89470527,3719.0,3718.9,0.25150642]
[1753439082168,1.05110527,3719.0,3718.9,2.94047358]
[1753439083062,2.36860527,3719.0,3718.9,0.25150642]
[1753439083467,1.91240527,3719.0,3718.9,0.25150642]
[1753439085752,1.91240527,3719.0,3718.9,0.25144091]
[1753439087152,2.36860527,3719.0,3718.9,0.25144091]
[1753439087358,9.32060013,3719.0,3718.9,0.25144091]
[1753439088186,13.55260013,3719.0,3718.9,0.25144091]
[1753439089294,19.80384407,3719.0,3718.9,0.25144091]
[1753439089495,2.68911178,3718.7,3718.6,0.001]
[1753439089697,7.05551178,3718.7,3718.6,0.25251186]
[1753439089996,8.37301178,3718.7,3718.6,0.25251186]
[1753439093725,8.37301178,3718.7,3718.6,0.2525018]
[1753439095072,2.82351178,3718.7,3718.6,0.2525018]
[1753439095402,8.37201178,3718.7,3718.6,0.2525018]
[1753439096316,8.50561509,3718.7,3718.6,0.2525018]
[1753439096482,8.37201178,3718.7,3718.6,0.2525018]
[1753439101925,9.59531178,3718.7,3718.6,0.2525018]
[1753439102072,12.59531178,3718.7,3718.6,0.2525018]
[1753439102871,12.73581339,3718.7,3718.6,0.25266032]
[1753439103071,12.9878446,3718.7,3718.6,0.001]
[1753439103278,13.53769433,3718.7,3718.6,0.001]
[1753439103505,13.688824,3718.7,3718.6,0.001]
[1753439103713,14.26856317,3718.7,3718.6,0.001]
[1753439103879,14.1174335,3718.7,3718.6,0.001]
[1753439104418,21.1574335,3718.7,3718.6,0.001]
[1753439104909,21.30847875,3718.7,3718.6,0.001]
[1753439105212,21.1574335,3718.7,3718.6,0.001]
[1753439105397,21.30840461,3718.7,3718.6,0.001]
[1753439106177,21.1574335,3718.7,3718.6,0.001]
[1753439107610,5.68983511,3717.7,3717.6,1e-08]
[1753439107811,17.41797905,3717.7,3717.6,1e-08]
[1753439107977,17.55237905,3717.7,3717.6,1e-08]
[1753439108178,18.34197905,3717.7,3717.6,1e-08]
[1753439109200,18.79787905,3717.7,3717.6,1e-08]
[1753439112231,16.10804394,3717.7,3717.6,1e-08]
[1753439112437,18.79787905,3717.7,3717.6,1e-08]
[1753439115404,19.34787905,3717.7,3717.6,1e-08]
[1753439118145,26.52641883,3717.7,3717.6,1e-08]
[1753439119133,26.52641883,3717.7,3717.1,0.001]
[1753439119134,13.80214086,3717.2,3717.1,0.001]
[1753439119440,18.16054086,3717.2,3717.1,0.001]
[1753439119645,18.95014086,3717.2,3717.1,0.001]
[1753439120216,19.40604086,3717.2,3717.1,0.001]
[1753439120947,18.95014086,3717.2,3717.1,0.001]
[1753439123349,3.1344,3717.2,3717.1,0.001]
[1753439123561,4.3574,3717.2,3717.1,0.4612]
[1753439124957,4.3574,3717.2,3717.1,0.001]
[1753439125124,7.3574,3717.2,3717.1,0.001]
[1753439125326,10.04759692,3717.2,3717.1,0.001]
[1753439125762,8.147,3717.2,3717.1,0.001]
[1753439126065,10.83719692,3717.2,3717.1,0.001]
[1753439126560,7.3574,3717.2,3717.1,0.001]
[1753439126764,10.04759692,3717.2,3717.1,0.001]
[1753439127068,10.83719692,3717.2,3717.1,0.001]
[1753439127730,8.147,3717.2,3717.1,0.001]
[1753439127930,7.3574,3717.2,3717.1,0.001]
[1753439128263,3.1344,3717.2,3717.1,0.4612]
[1753439128424,7.3574,3717.2,3717.1,0.4612]
[1753439128630,7.3574,3717.2,3717.1,0.001]
[1753439128958,8.147,3717.2,3717.1,0.001]
[1753439129566,10.83719692,3717.2,3717.1,0.001]
[1753439129733,11.29309692,3717.2,3717.1,0.001]
[1753439130735,10.83719692,3717.2,3717.1,0.001]
[1753439132874,11.98409692,3717.2,3717.1,0.001]
[1753439133037,12.43999692,3717.2,3717.1,0.001]
[1753439133366,11.98409692,3717.2,3717.1,0.001]
[1753439134066,12.43999692,3717.2,3717.1,0.001]
[1753439136568,11.98409692,3717.2,3717.1,0.001]
[1753439137274,12.564452,3717.2,3717.1,0.001]
[1753439137866,12.43469692,3717.2,3717.1,0.001]
[1753439138181,13.01517478,3717.2,3717.1,0.001]
[1753439138777,13.11457478,3717.2,3717.1,0.001]
[1753439138978,13.56517478,3717.2,3717.1,0.001]
[1753439139174,13.81715957,3717.2,3717.1,0.001]
[1753439139969,12.57695957,3717.2,3717.1,0.001]
[1753439140151,13.57037478,3717.2,3717.1,0.001]
[1753439140651,13.82236166,3717.2,3717.1,0.001]
[1753439140852,13.82236227,3717.2,3717.1,0.001]
[1753439141070,13.57037478,3717.2,3717.1,0.001]
[1753439141272,13.82237453,3717.2,3717.1,0.001]
[1753439142076,9.59937453,3717.2,3717.1,0.001]
[1753439142252,13.81837453,3717.2,3717.1,0.001]
[1753439142971,13.95896116,3717.2,3717.1,0.001]
[1753439144286,9.28936116,3717.2,3717.1,0.001]
[1753439144483,1.10739486,3717.2,3717.1,0.001]
[1753439144688,0.1344,3717.2,3717.1,0.461]
[1753439144849,0.1344,3717.2,3717.1,1.7219]
[1753439145051,7.3524,3717.2,3717.1,4.85360046]
[1753439145283,7.3524,3717.2,3717.1,2.16333117]
[1753439145484,4.3524,3717.2,3717.1,1.2619]
[1753439145685,10.29455553,3717.2,3717.1,1.2619]
[1753439145887,7.3524,3717.2,3717.1,0.001]
[1753439146096,7.60436533,3717.2,3717.1,0.001]
[1753439146299,10.29456225,3717.2,3717.1,0.001]
[1753439146589,7.60436533,3717.2,3717.1,0.001]
[1753439147467,7.3524,3717.2,3717.1,0.001]
[1753439147792,7.3514,3717.2,3717.1,0.001]
[1753439149672,3.1344,3717.2,3717.1,1.1871]
[1753439149880,3.1344,3717.2,3717.1,4.33736929]
[1753439149881,7.3504,3717.2,3717.1,4.33736929]
[1753439150174,7.3504,3717.2,3717.1,1.1871]
[1753439150600,3.1344,3717.2,3717.1,4.33736929]
[1753439150807,7.3504,3717.2,3717.1,1.6471]
[1753439151206,7.3504,3717.2,3717.1,4.33736929]
[1753439151916,7.3504,3717.2,3717.1,1.6471]
[1753439152898,7.3504,3717.2,3717.1,1.1871]
[1753439153821,7.3504,3717.2,3717.1,0.001]
[1753439154010,7.3494,3717.2,3717.1,0.001]
[1753439154214,8.1442,3717.2,3717.1,0.001]
[1753439154414,10.83439692,3717.2,3717.1,0.001]
[1753439154736,11.28499692,3717.2,3717.1,0.001]
[1753439154952,12.41503699,3717.2,3717.1,0.001]
[1753439156239,7.3484,3717.2,3717.1,0.001]
[1753439156743,10.83339692,3717.2,3717.1,0.001]
[1753439156943,11.28399692,3717.2,3717.1,0.001]
[1753439157258,17.53524086,3717.2,3717.1,0.001]
[1753439157424,7.3484,3717.2,3717.1,0.001]
[1753439157737,8.5938,3717.2,3717.1,0.001]
[1753439158597,11.28399692,3717.2,3717.1,0.001]
[1753439158800,8.5938,3717.2,3717.1,0.001]
[1753439159526,11.28399692,3717.2,3717.1,0.001]
[1753439159839,12.84409692,3717.2,3717.1,0.001]
[1753439163013,8.63009692,3717.2,3717.1,0.001]
[1753439163210,12.84209692,3717.2,3717.1,0.001]
[1753439163397,9.21036326,3717.2,3717.1,0.001]
[1753439163601,11.41166326,3717.2,3717.1,0.001]
[1753439163998,10.83139692,3717.2,3717.1,0.001]
[1753439164229,7.06999692,3717.2,3717.1,0.001]
[1753439164409,11.28199692,3717.2,3717.1,0.001]
[1753439164617,11.83199692,3717.2,3717.1,0.001]
[1753439165448,7.61999692,3717.2,3717.1,0.001]
[1753439165653,12.4123908,3717.2,3717.1,0.001]
[1753439166014,1.0827,3716.0,3714.6,1.0165]
[1753439166252,3.0,3715.8,3714.6,1.0165]
[1753439166454,10.72612691,3715.9,3714.7,0.4571]
[1753439166455,3.0,3715.6,3714.7,0.4571]
[1753439166749,3.0,3715.4,3714.7,0.4571]
[1753439166916,3.0,3715.2,3714.7,0.4571]
[1753439167117,3.0,3715.0,3714.7,0.4571]
[1753439167447,7.211,3714.9,3714.8,0.4571]
[1753439168149,3.0,3714.9,3714.8,0.4571]
[1753439168445,4.211,3714.9,3714.8,0.4571]
[1753439168825,4.211,3714.9,3714.8,3.14903496]
[1753439169745,4.211,3714.9,3714.8,2.69193496]
[1753439170060,3.0,3714.8,3714.2,1.0906]
[1753439170215,3.0,3714.6,3714.2,1.0906]
[1753439170530,3.0,3714.4,3714.2,1.0906]
[1753439170738,4.211,3714.3,3714.2,1.5477]
[1753439171111,7.211,3714.3,3713.5,1.1093]
[1753439171311,5.69238252,3714.2,3713.5,1.1093]
[1753439171546,6.90346034,3714.1,3713.5,1.1093]
[1753439171761,4.211,3714.1,3713.2,1.13623094]
[1753439172054,0.792,3714.0,3713.2,3.8023803]
[1753439172348,4.211,3713.9,3713.3,2.69300675]
[1753439172556,6.90360195,3713.9,3713.2,1.1093]
[1753439172758,4.211,3713.9,3713.2,1.1093]
[1753439173051,3.792,3713.8,3713.2,1.1093]
[1753439173257,4.211,3713.7,3713.2,1.1093]
[1753439173622,5.003,3713.7,3713.2,1.1093]
[1753439173957,0.792,3713.6,3713.2,1.1093]
[1753439174145,3.0,3713.4,3713.2,1.1093]
[1753439174342,6.48453903,3714.0,3713.2,1.1093]
[1753439174668,6.48453903,3714.0,3712.4,2.69363455]
[1753439174669,1.61024062,3714.1,3713.7,1.0108]
[1753439174818,1.61024062,3714.1,3714.0,2.6925148]
[1753439175015,1.61024062,3714.1,3714.0,4.1604148]
[1753439175252,1.61024062,3714.1,3714.0,1.0108]
[1753439175452,1.61024062,3714.1,3714.0,1.4679]
[1753439175750,4.211,3714.2,3714.0,1.0108]
[1753439175959,4.211,3714.2,3712.8,3.0]
[1753439176119,4.211,3714.2,3712.0,2.69395912]
[1753439176120,0.1344,3714.0,3713.4,0.1344]
[1753439176321,4.211,3713.9,3713.4,0.1344]
[1753439176853,0.792,3713.8,3713.4,0.1344]
[1753439177245,4.211,3713.9,3713.4,2.82734426]
[1753439177558,4.211,3713.8,3713.5,0.4571]
[1753439177920,3.0,3713.7,3713.4,0.1344]
[1753439178430,0.792,3713.6,3713.4,0.1344]
[1753439178633,4.21,3713.5,3713.4,0.1344]
[1753439178833,7.21,3713.5,3713.4,0.1344]
[1753439179857,0.1344,3714.0,3713.5,2.69287733]
[1753439180061,0.1344,3714.2,3714.0,2.69246762]
[1753439180379,4.21,3714.3,3714.1,0.5915]
[1753439180575,4.21,3714.3,3714.1,0.1344]
[1753439180765,5.002,3714.3,3713.9,0.1344]
[1753439180952,4.21,3714.3,3713.9,0.1344]
[1753439181271,0.1344,3714.4,3713.9,0.1344]
[1753439181438,4.21,3714.3,3713.9,0.5915]
[1753439181841,1.2337,3714.2,3713.7,1.0108]
[1753439182040,2.69252404,3714.0,3713.2,3.76642619]
[1753439182265,5.002,3713.9,3713.2,3.76642619]
[1753439182774,2.69269171,3713.8,3713.2,1.0734]
[1753439182970,0.792,3713.8,3713.2,1.0734]
[1753439183340,0.792,3713.8,3713.2,3.76648896]
[1753439183556,0.792,3713.8,3713.2,1.0734]
[1753439184077,1.2337,3713.8,3713.2,1.0734]
[1753439184251,3.13436299,3713.8,3713.2,1.0734]
[1753439184457,0.792,3713.7,3713.2,1.0734]
[1753439184648,4.21,3713.6,3713.2,1.0734]
[1753439185051,4.21,3713.6,3712.5,1.0071]
[1753439185052,3.0,3713.5,3712.5,1.0071]
[1753439185285,4.21,3713.4,3713.2,0.9814]
[1753439185464,4.21,3713.4,3713.2,1.4385]
[1753439185786,4.21,3713.4,3713.2,0.9814]
[1753439186447,4.21,3713.4,3712.9,2.69328875]
[1753439186648,0.792,3713.3,3712.9,2.69328875]
[1753439186952,0.792,3713.2,3713.1,0.001]
[1753439188083,1.2337,3713.2,3713.1,0.001]
[1753439188443,8.0028949,3713.2,3713.1,0.001]
[1753439188669,12.2118949,3713.2,3713.1,0.001]
[1753439191751,12.3462949,3713.2,3713.1,0.001]
[1753439194275,12.3462949,3713.2,3712.3,0.001]
[1753439194276,4.052,3712.4,3712.3,0.001]
[1753439194473,10.03707525,3712.4,3712.3,0.001]
[1753439194674,10.82907525,3712.4,3712.3,0.001]
[1753439194980,11.27077525,3712.4,3712.3,0.001]
[1753439195555,11.40602415,3712.4,3712.3,0.001]
[1753439197081,12.41912415,3712.4,3712.3,0.001]
[1753439197462,4.9395,3712.4,3712.3,0.001]
[1753439197663,11.84217525,3712.4,3712.3,0.001]
[1753439197870,12.30807525,3712.4,3712.3,0.001]
[1753439198668,12.44395247,3712.4,3712.3,0.001]
[1753439199284,12.99395247,3712.4,3712.3,0.001]
[1753439199484,22.18956648,3712.4,3712.3,0.001]
[1753439200664,17.98056648,3712.4,3712.3,0.001]
[1753439200901,18.94489123,3712.4,3712.3,0.001]
[1753439201105,9.74927722,3712.4,3712.3,0.001]
[1753439201807,12.44295247,3712.4,3712.3,0.001]
[1753439202007,9.74927722,3712.4,3712.3,0.001]
[1753439202307,12.30855247,3712.4,3712.3,0.001]
[1753439203174,12.85855247,3712.4,3712.3,0.001]
[1753439203891,22.05416648,3712.4,3712.3,0.001]
[1753439204608,2.69401692,3712.0,3711.6,0.001]
[1753439204772,5.69418325,3711.7,3711.6,0.001]
[1753439204976,9.90218325,3711.7,3711.6,0.001]
[1753439205177,7.208,3711.7,3711.6,3.15055584]
[1753439205409,4.208,3711.7,3711.6,4.18315584]
[1753439206218,4.208,3711.7,3711.6,3.72785584]
[1753439206724,4.208,3711.7,3709.5,2.6957679]
[1753439206725,3.9949,3711.6,3709.5,2.6957679]
[1753439207022,4.208,3711.5,3710.9,2.6947452]